Cogmind - Beta 15 @@@ ROGUE MODE // 2025.05.17 @ 13:54:01 Player: Perseus Result: Destroyed by YI-UF0 with YI-UF0's Doublenader Performance ------------- Evolutions (0) 0 Regions Visited (2) 400 Robots Destroyed (39) 195 Value Destroyed (639) 639 Prototype IDs (7) 140 Alien Tech Used (0) 0 Bonus (0) 0 TOTAL SCORE: 1374 Bonus ------- None Cogmind --------- Core Integrity 0/250 Matter 278/300 Energy 100/100 System Corruption 1% Temperature Warm (130) Movement Treading (240) Ox1 Location -10/Mines Parts ------- > --- POWER (1) -------- (None) > --- PROPULSION (2) --- Light Treads > --- UTILITY (2) ------ Large Storage Unit Hacking Suite > --- WEAPON (2) ------- Beam Cannon Light Assault Rifle > --- INVENTORY (15) --- Ion Engine Light Treads Compact Wheel High-capacity Storage Unit Large Matter Pod (150) Structural Scanner Improved Terrain Scanner Seismic Detector Small Laser Grenade Launcher Datajack Mining Laser Peak State ------------ > --- POWER ------------ Ion Engine > --- PROPULSION ------- Light Treads Light Treads > --- UTILITY ---------- Large Storage Unit Hacking Suite > --- WEAPON ----------- Assault Rifle Light Assault Rifle > --- INVENTORY -------- Light Ion Engine Light Treads Compact Wheel Large Storage Unit High-capacity Storage Unit Large Matter Pod Structural Scanner Beam Cannon Datajack Mining Laser [Rating: 10] Favorites ----------- Power Ion Engine Engine Ion Engine Propulsion Light Treads Treads Light Treads Wheel Compact Wheel Utility Hacking Suite Device Seismic Detector Storage Large Storage Unit Hackware Hacking Suite Weapon Assault Rifle Energy Gun EM Pulse Gun Energy Cannon Beam Cannon Ballistic Gun Assault Rifle Special Weapon Mining Laser Special Melee Weapon Datajack Build | -11 -10 -10 ------- Run | Yrd Mat Min Slots Evolved . | . . . Power . | . . . Propulsion . | . . . Utility . | . . . Weapon . | . . . Parts Attached 19 | 7 7 5 Power 2 | 1 . 1 Engine 2 | 1 . 1 Core . | . . . Reactor . | . . . Propulsion 4 | 2 . 2 Treads 3 | 2 . 1 Leg . | . . . Wheel 1 | . . 1 Hover . | . . . Flight . | . . . Utility 4 | 2 2 . Device 1 | 1 . . Storage 2 | 1 1 . Processor . | . . . Hackware 1 | . 1 . Protection . | . . . Artifact . | . . . Weapon 9 | 2 5 2 Energy Gun 1 | 1 . . Energy Cannon 3 | . 1 2 Ballistic Gun 3 | 1 2 . Ballistic Cannon . | . . . Launcher . | . . . Special Weapon 1 | . 1 . Impact Weapon . | . . . Slashing Weapon . | . . . Piercing Weapon . | . . . Special Melee Weapon 1 | . 1 . Unidentified Prototypes . | . . . Parts Lost 6 | . 1 5 Power 1 | . . 1 Propulsion 2 | . . 2 Utility . | . . . Weapon 3 | . 1 2 Highest Loss Streak 5 | . 1 5 To Critical Strikes . | . . . Average Backups 10 | 5 10 14 Power . | 1 1 . Propulsion 2 | 2 2 2 Utility 3 | . 3 5 Weapon 3 | 1 2 4 Tool/Special . | . . . Unused Backups 16 | . 6 10 Power 2 | . . 2 Propulsion 4 | . 3 1 Utility 8 | . 3 5 Weapon 2 | . . 2 Tool/Special . | . . . Average Slot Usage (%) 99 | . 99 100 Engine 14 | . 14 14 Treads 27 | . 27 27 Device 2 | . 3 . Storage 14 | . 14 14 Hackware 11 | . 10 14 Energy Gun 2 | . 3 . Energy Cannon 3 | . . 13 Ballistic Gun 20 | . 22 14 Peak Build Rating 10 | 7 10 10 Average Rating 9 | 5 9 9 On Entrance 5 | . 7 10 Naked Turns . | . . . Heaviest Build 30 | 15 30 30 Greatest Support 40 | 40 40 40 Greatest Overweight (x) 1 | . . 1 Average Overweight (x) . | . . . Largest Inventory Capacity 15 | 8 15 15 Average Capacity 11 | 7 11 15 Most Carried 15 | 7 15 15 Average Carried 10 | 5 10 14 Final Capacity 15 | 8 15 15 Final Carried 15 | 6 15 12 Class Distribution -------------------- 100% | Mutant Dominant Class ---------------- Mutant | -10/Materials Mutant | -10/Mines Resources | -11 -10 -10 ----------- Run | Yrd Mat Min Matter Collected 1019 | 302 562 155 Remotely . | . . . Salvage Created 1310 | 177 834 299 Parts 79 | 11 54 14 Haulers Intercepted 2 | . 2 . Recyclers Shooed 3 | . 3 . Parts Field Recycled . | . . . Retrieved Matter . | . . . Parts Self-Destructed . | . . . Prevented . | . . . Kills | -11 -10 -10 ------- Run | Yrd Mat Min Combat Hostiles Destroyed 16 | . 10 6 Guns 8 | . 8 . Cannons 6 | . . 6 AOE 2 | . 2 . Classes Destroyed 9 | 3 6 . Worker 5 | 1 4 . Builder 3 | . 2 1 Tunneler 5 | 3 2 . Hauler 2 | . 2 . Recycler 3 | 1 2 . Operator 2 | . 2 . Watcher 3 | . 3 . Swarmer 6 | . 6 . Grunt 10 | . 4 6 Best Kill Streak 6 | 5 6 2 Combat Bots Only 5 | . 5 2 Max Kills in Single Turn 2 | 1 2 1 Gunslinging . | . . . Exploded 2 | . 2 . Melee . | . . . Uniques/NPCs Destroyed . | . . . Combat | -11 -10 -10 -------- Run | Yrd Mat Min Hostile Shots Fired 104 | . 38 66 Missed 37 | . 13 24 Hits 67 | . 25 42 Projectile 67 | . 25 42 AOE 23 | . . 23 Critical Strikes 1 | . 1 . Damage Taken 1305 | . 230 1075 Core 267 | . 24 243 Absorbed by Shields . | . . . Regen/Repaired (Parts) 62 | . 62 . Core Remaining (%) 100 | 100 . . Volleys Fired 131 | 14 79 38 Largest 2 | 2 2 2 Hottest 120 | 60 120 80 Shots Fired 261 | 28 157 76 Gun 219 | 28 153 38 Cannon 39 | . 1 38 Launcher . | . . . Special 3 | . 3 . Kinetic 173 | 14 121 38 Thermal 42 | . 4 38 Explosive . | . . . Electromagnetic 46 | 14 32 . Robot Hit Streak 10 | 8 10 8 Robot Miss Streak 7 | 2 7 2 Penetration Max . | . . . Secondary Targets 1 | . 1 . Max Gunslinging Chain 1 | . 1 . Shots Hit Robots 158 | 21 84 53 Core Hits 61 | 4 40 17 Critical Kills . | . . . Critical Parts Destroyed 1 | . . 1 Critical Strikes 1 | . . 1 Destroy 1 | . . 1 Melee Attacks 1 | . . 1 Impact . | . . . Slashing . | . . . Piercing . | . . . Sneak Attacks 1 | . . 1 Combat Hostiles . | . . . Follow-up Attacks . | . . . Damage Inflicted 2233 | 291 1173 769 Guns 1585 | 256 1041 288 Cannons 481 | . . 481 Explosions 167 | 35 132 . Melee . | . . . Ramming . | . . . Kinetic 1185 | 114 783 288 Thermal 648 | 35 132 481 Explosive . | . . . Electromagnetic 400 | 142 258 . Impact . | . . . Slashing . | . . . Piercing . | . . . Highest Corruption 1 | . 1 1 Average Corruption 1 | . 1 1 Corruption Purged . | . . . Corruption Blocked . | . . . Effects 3 | . . 3 Message Errors 1 | . . 1 Matter Fused 2 | . . 2 Overload Shots . | . . . Overflow Damage 22 | 18 4 . Projectiles . | . . . Explosions 22 | 18 4 . Melee . | . . . Knockbacks . | . . . Impact . | . . . Kinetic . | . . . Secondary . | . . . Self-Inflicted Damage . | . . . Shots . | . . . Rammed . | . . . Targets Rammed . | . . . Kicked . | . . . Crushed . | . . . Highest Temperature 261 | . 27 261 Average Temperature 63 | . 14 82 Received Heat Transfer 246 | . 69 177 Effects 1 | . . 1 Interference 1 | . . 1 Siege Activations . | . . . Martial Activations . | . . . Shielding Activations . | . . . Robots Disrupted . | . . . Combat Hostiles . | . . . Robots Corrupted 1 | . 1 . Combat Hostiles . | . . . Parts Fried 1 | . 1 . Impact Corruptions . | . . . Robots Melted . | . . . Combat Hostiles . | . . . Parts Melted 2 | . . 2 Heat Transferred 1249 | 50 200 999 Parts Sabotaged . | . . . Parts Stolen . | . . . Parts Stripped . | . . . Power Chain Reactions 2 | 1 1 . Alert | -11 -10 -10 ------- Run | Yrd Mat Min Maximum Alert Level . | . . . Low Security (%) 100 | 100 100 100 Level 1 . | . . . Level 2 . | . . . Level 3 . | . . . Level 4 . | . . . Level 5 . | . . . High Security . | . . . Max Security . | . . . Peak Influence 137 | 15 137 90 Initial . | . . . Average 18 | 2 18 23 Influence Increases 620 | 25 390 205 Destroy 0b10 Robot/C 320 | . 200 120 Destroy 0b10 Robot/NC 115 | 25 85 5 Destroy Leader 80 | . 50 30 Successful Hack 35 | . 30 5 Disable Machine 45 | . . 45 Destroy Structure 10 | . 10 . Lose Combat Pursuer 15 | . 15 . Influence Decreases 620 | 25 390 205 Time Decay 610 | 25 380 205 Lost Part 10 | . 10 . Squads Dispatched 3 | . 3 . Investigation 1 | . 1 . Extermination . | . . . Reinforcement 2 | . 2 . Assault . | . . . Garrison . | . . . Intercept . | . . . Searches Triggered . | . . . Construction Impeded . | . . . Haulers Reinforced . | . . . Active Scanning Responses . | . . . Cargo Convoy Interrupts . | . . . Stealth | -11 -10 -10 --------- Run | Yrd Mat Min Distress Signals 2 | . 2 . Communications Jammed . | . . . Distress Signals . | . . . Times Spotted 26 | . 19 7 Peak Tracking Total 6 | . 6 2 Tactical Retreats 1 | . 1 . Traps | -11 -10 -10 ------- Run | Yrd Mat Min Traps Triggered 1 | . 1 . Indirectly . | . . . Trap Hack Attempts 10 | . 10 . Triggered . | . . . Disarmed 1 | . 1 . Reprogrammed . | . . . Reused . | . . . Traps Extracted . | . . . Installed . | . . . Triggered . | . . . Machines | -11 -10 -10 ---------- Run | Yrd Mat Min Machines Disabled 3 | . . 3 Max in Single Turn 1 | . . 1 Machines Repaired . | . . . Machines Dismantled . | . . . Machines Sabotaged . | . . . Overloaded Fab Kills . | . . . Hacking | -11 -10 -10 --------- Run | Yrd Mat Min Machines Accessed 10 | . 9 1 Terminals 7 | . 6 1 Fabricators . | . . . Repair Stations 1 | . 1 . Recycling Units 2 | . 2 . Scanalyzers . | . . . Garrison Access . | . . . Total Hacks 36 | . 34 2 Successful 19 | . 18 1 Failed 17 | . 16 1 Catastrophic . | . . . Database Lockouts . | . . . Manual 24 | . 21 3 Terminals 30 | . 28 2 Fabricators . | . . . Repair Stations 2 | . 2 . Recycling Units 4 | . 4 . Scanalyzers . | . . . Garrison Access . | . . . Terminal Hacks 12 | . 11 1 Robot Analysis 3 | . 2 1 Prototype ID Bank 3 | . 3 . Terminal Index 1 | . 1 . Locate Traps 4 | . 4 . Registered Components 1 | . 1 . Fabricator Hacks . | . . . Repair Station Hacks 2 | . 2 . Scan Component 1 | . 1 . Repair 1 | . 1 . Recycling Unit Hacks 1 | . 1 . Retrieve Components 1 | . 1 . Scanalyzer . | . . . Garrison Access Hacks . | . . . Unauthorized Hacks 4 | . 4 . Terminals 3 | . 3 . Botnet 2 | . 2 . Operators 1 | . 1 . Fabricators . | . . . Repair Stations . | . . . Recycling Units 1 | . 1 . Reject 1 | . 1 . Scanalyzers . | . . . Garrison Access . | . . . Data Cores Recovered . | . . . Used . | . . . Hacking Detections 9 | . 8 1 Full Trace Events . | . . . Feedback Events . | . . . Feedback Blocked . | . . . Robot Schematics Acquired . | . . . Robots Built . | . . . Authchips . | . . . Time . | . . . Total Robot Build Rating . | . . . Part Schematics Acquired . | . . . Parts Built . | . . . Authchips . | . . . Time . | . . . Total Part Build Rating . | . . . Parts Repaired 1 | . 1 . Time 26 | . 26 . Parts Recycled . | . . . Recycled Matter . | . . . Retrieved Matter . | . . . Retrieved Components 9 | . 9 . Parts Scanalyzed . | . . . Part Schematics Acquired . | . . . Parts Damaged . | . . . Bothacking | -11 -10 -10 ------------ Run | Yrd Mat Min Used RIF Installer . | . . . Robots Hacked 1 | . . 1 Non-combat . | . . . Combat 1 | . . 1 Robot Hacks Applied 1 | . . 1 parse_system 1 | . . 1 Relay Couplers Released . | . . . Fabnet Peak Effective % . | . . . Robots Rewired . | . . . Allies Hacked . | . . . Hacks Repelled . | . . . Allies | -11 -10 -10 -------- Run | Yrd Mat Min Total Allies . | . . . Largest Group . | . . . Highest-Rated Group . | . . . Highest-Rated Ally . | . . . Total Orders . | . . . Ally Attacks . | . . . Total Damage . | . . . Kills . | . . . Allies Corrupted . | . . . Allies Melted . | . . . Intel | -11 -10 -10 ------- Run | Yrd Mat Min Active Infowar (turns) 534 | 2 532 . Seismic 534 | 2 532 . Robot Analysis Total 3 | . 2 1 Derelict Logs Recovered . | . . . Drone Launches . | . . . Drone Recoveries . | . . . Exploration | -11 -10 -10 ------------- Run | Yrd Mat Min Turns Passed 3056 | 169 2253 634 Spaces Moved 1549 | 76 1192 281 Core 12 | 12 . . Treads 1525 | 64 1192 269 Legs . | . . . Wheels 12 | . . 12 Hover . | . . . Flight . | . . . Fastest Speed 50 | 50 160 115 Average Speed 158 | 142 160 158 Slowest Speed 160 | 160 160 160 Overloaded Moves . | . . . Propulsion Burnouts . | . . . Robots Hopped . | . . . Potential Cave-ins . | . . . Cave-ins Triggered . | . . . Exploration Rate (%) 51 | 5 98 50 Regions Visited 2 Branch Regions 1 Pre-discovered Areas . | . . . Known Exits Taken . | . . . Unknown Exits Taken 2 | 1 1 . Scrap Searched 2 | . . 2 Spaces Dug 3 | . 3 . Terrain Destroyed 14 | 6 8 . Melee . | . . . Projectile 3 | . 3 . AOE 11 | 6 5 . Terrain Rammed . | . . . Walls Destroyed . | . . . Machines Disabled . | . . . Actions | -11 -10 -10 --------- Run | Yrd Mat Min Total 1888 | 109 1384 395 Wait 125 | . 66 59 Move 1547 | 75 1191 281 Hop . | . . . Pick Up 32 | 13 16 3 Fast Attach 2 | . 2 . Attach 11 | 7 1 3 Detach . | . . . Swap 16 | . 10 6 Drop 13 | . 9 4 Fire 131 | 14 79 38 Melee 1 | . . 1 Ram . | . . . Kick . | . . . Crush . | . . . Escape Stasis . | . . . Rewire . | . . . Trap 10 | . 10 . Miscellaneous . | . . . Route ------- -11/Scrapyard -10/Materials (discovered 5 exits: [*Mat x3] / *Min / [*Sub]) -10/Mines (discovered 1 exit: [*Mat]) History --------- Turn | Location | Event 12 | -11/Scrapyard | Discovered new exit (range 15) 170 | -11/Scrapyard | Entered Materials 171 | -10/Materials | Met a group of wandering Federalists 303 | -10/Materials | Build established: Mutant 578 | -10/Materials | Discovered new exit (range 5) 792 | -10/Materials | Discovered new exit (range 10) 878 | -10/Materials | Discovered new exit (range 9) 1038 | -10/Materials | Repaired Lgt. Treads 1298 | -10/Materials | Discovered new exit (range 9) 1464 | -10/Materials | Discovered new exit (range 8) 2423 | -10/Materials | Entered Mines 2677 | -10/Mines | YI-UF0 nonchalantly dropped a Grenade Launcher on the ground 2914 | -10/Mines | Discovered new exit (range 5) 3040 | -10/Mines | Core integrity fell below 50% 3054 | -10/Mines | Core integrity fell below 20% 3057 | -10/Mines | Destroyed by YI-UF0 with YI-UF0's Doublenader Last Messages --------------- 02925_ Acquired 10 matter. 02967_ System corrupted: Matter fused (-6). 03026_ Assault Rifle destroyed. 03027_ YI-UF0 mumbles something. 03028_ YI-UF0: "WHOMP!" 03028_ K-01 Serf destroyed. 03028_ U-05 Engineer destroyed. 03030_ The unstable cave ceiling collapses. 03030_ Lgt. Treads destroyed. 03032_ The unstable cave ceiling collapses. 03041_ YI-UF0 mumbles something. 03044_ The unstable cave ceiling collapses. 03053_ Lgt. Treads destroyed. 03053_ Beam Cannon destroyed. 03054_ The unstable cave ceiling collapses. 03054_ YI-UF0 suffers critical hit (Destroy). 03054_ Destroyed Shock Absorption System. 03055_ The unstable cave ceiling collapses. 03055_ Ion Engine destroyed. 03056_ The unstable cave ceiling collapses. Map ----- +----------------------------------------------------+ | ????## #???????????????????????###??? | | ?????## ##??????????????????????# ##?? | | ??????## #????????????????????### #?? | | ???????## ##########??????????## #?? | | ????????# ############ #?? | | ????????# /% #??? | | ????????# ###### !! #???? | | ????????## ##????############# ##??? | | ?????????####?????????????????# #??? | | ??????????????????????????????# ##?? | | ??????????????????????????????# #?? | | ?????????????????????????????## #?? | | ?????????????????????????????# """ ##? | | ??????????????????????????#### """ #? | | ?????????????????????##### ### """ #? | | ????????????????????## #### #? | | ????????????????????# #### #? | | ????????????????????# #### ##? | | ????????????????????? #### ###?? | | ????????????????????? k #???? | | ?????????????????????? ##### #???? | | ?????????????????????## #??# #???? | | ???????????????????### # #??# #???? | | ???????????????????# # #???? | | ?????????????????# # #???? | | ?????????????????# @ #???? | | ?????????????????# ## ##???? | | ???????????????# ## #????? | | ???????????? # g ## #????? | | ??????????? # # =# #### ?????? | | ################## ##??## #?????? | | %!%! * ####????# ??????? | | # ############### #????????# ??????? | | # #????????????# # ????????# ??????? | | # ####???????? ? ## #????????# ??????? | | #???????? ?####? #????????? ??????? | | #???????????????# ??????????????????? | | """ #??????????????? ??????????????????? | | """ #??????????????? ???????????????????? | | "" #???????????????#???????????????????? | | #???????????????????????????????????? | | """ #???????????????????????????????????? | | """ #???????????????????????????????????? | | """ #???????????????????????????????????? | | = #???????????????????????????????????? | | ######???????????????????????????????????? | | ?????????????????????????????????????????? | | ?????????????????????????????????????????? | | ?????????????????????????????????????????? | | ?????????????????????????????????????????? | +----------------------------------------------------+ Best States ------------- Heat Dissipation 25 Energy Generation 10 Energy Capacity 250 Matter Stores 300 Matter Capacity 300 Sight Range 16 Terrain Scan Density 10 Evasion (%) 50 Recoil Reduction 2 Offensive Hacking 10 Item Schematics ----------------- None Robot Schematics ------------------ None Fabricated ------------ Nothing Repaired ---------- Lgt. Treads | 55% | -10/Materials Alien Tech Used ----------------- None Achievements -------------- None Challenges ------------ None Game ------ Seed UltimateSeismicPit Manual? 0 Play Time 00:23:02 Cumulative 788.5 hours Start 2025.05.17 @ 12:23:24 End 2025.05.17 @ 13:54:01 Sessions 3 Manual Loads 0 Difficulty Rogue Special Mode None Game No. 140 Rogue 116 Adventurer 24 Explorer 0 Win Type - Total 29 Types 18/2/3/3/1/0/1/1/0/0 Lore% 74 Gallery% 84 Achievement% 88 Wizard Run 0 Options --------- Layout 0 ASCII 0 Keyboard 0 Movement Mouse Keybinds 0 Fullscreen 1 Font 36/Smallcaps Map View 76x50 Zoom Use 0% Tactical HUD 1 Map Filters SHIFT_HUE(360) Filters NONE Steam 1 RUN: 5efb416c-96f7-4b16-801a-a940cf67e3c2